lending/lending_fUSD_20260306
["ID","MTS","AMOUNT","RATE_DAILY","PERIOD"]
[407838831,1772824036524,765.71831369,8e-05,2]
[407838832,1772824042135,500.0,0.0001142,2]
[407838833,1772824042609,506.54613806,8e-05,2]
[407838834,1772824045305,500.0,0.0001142,2]
[407838835,1772824045637,500.0,0.0001142,2]
[407838836,1772824046589,980.12020361,0.0001142,2]
[407838837,1772824050934,500.0,0.0001142,2]
[407838838,1772824052106,-2542.72101729,0.0001397,2]
[407838839,1772824067546,187.8222371,0.0001,2]
[407838840,1772824118235,-536.0,0.0001342,2]
[407838841,1772824132965,-480.196095,0.00013824,2]
[407838842,1772824132997,-180.71885384,0.0001387,2]
[407838843,1772824133030,-180.71885382,0.00013882,2]
[407838844,1772824133062,-251.4432,0.00013894,2]
[407838845,1772824133093,-180.71885382,0.00013894,2]
[407838846,1772824133125,-274.33221134,0.00013901,2]
[407838847,1772824133162,-500.0,0.00013901,2]
[407838848,1772824133194,-500.0,0.00013901,2]
[407838849,1772824133223,-249.64561353,0.00013901,2]
[407838850,1772824133252,-500.0,0.00013901,2]
[407838851,1772824133282,-270.7026983,0.00013901,2]
[407838852,1772824133315,-159.57758561,0.00013901,2]
[407838853,1772824133345,-500.0,0.00013901,2]
[407838854,1772824133379,-500.0,0.00013901,2]
[407838855,1772824133414,-500.0,0.00013901,2]
[407838856,1772824133443,-500.0,0.00013901,2]
[407838857,1772824133480,-500.0,0.00013901,2]
[407838858,1772824133511,-500.0,0.00013901,2]
[407838859,1772824133541,-418.14567407,0.00013901,2]
[407838860,1772824133573,-500.0,0.00013901,2]
[407838861,1772824133605,-500.0,0.00013901,2]
[407838862,1772824133637,-500.0,0.00013901,2]
[407838863,1772824133669,-500.0,0.00013901,2]
[407838864,1772824133700,-500.0,0.00013901,2]
[407838865,1772824133732,-415.87907041,0.00013901,2]
[407838866,1772824133764,-500.0,0.00013901,2]
[407838867,1772824133795,-500.0,0.00013901,2]
[407838868,1772824133841,-500.0,0.00013901,2]
[407838869,1772824133878,-500.0,0.00013901,2]
[407838870,1772824133910,-500.0,0.00013901,2]
[407838871,1772824133943,-500.0,0.00013901,2]
[407838872,1772824133976,-500.0,0.00013901,2]
[407838873,1772824134009,-500.0,0.00013901,2]
[407838874,1772824134042,-500.0,0.00013901,2]
[407838875,1772824134076,-500.0,0.00013901,2]
[407838876,1772824134113,-500.0,0.00013901,2]
[407838877,1772824134145,-500.0,0.00013901,2]
[407838878,1772824134178,-500.0,0.00013901,2]
[407838879,1772824134210,-500.0,0.00013901,2]
[407838880,1772824134246,-500.0,0.00013901,2]
[407838881,1772824134279,-500.0,0.00013901,2]
[407838882,1772824134857,-480.196095,0.00013902,2]
[407838883,1772824134872,-180.71885384,0.00013902,2]
[407838884,1772824134891,-180.71885382,0.00013902,2]
[407838885,1772824134906,-251.4432,0.00013902,2]
[407838886,1772824134917,-180.71885382,0.00013902,2]
[407838887,1772824134927,-274.33221134,0.00013902,2]
[407838888,1772824134939,-500.0,0.00013902,2]
[407838889,1772824134950,-500.0,0.00013902,2]
[407838890,1772824134961,-249.64561353,0.00013902,2]
[407838891,1772824134977,-500.0,0.00013902,2]
[407838892,1772824134995,-270.7026983,0.00013902,2]
[407838893,1772824135006,-159.57758561,0.00013902,2]
[407838894,1772824135016,-500.0,0.00013902,2]
[407838895,1772824135031,-500.0,0.00013902,2]
[407838896,1772824135042,-500.0,0.00013902,2]
[407838897,1772824135053,-500.0,0.00013902,2]
[407838898,1772824135064,-500.0,0.00013902,2]
[407838899,1772824135075,-500.0,0.00013902,2]
[407838900,1772824135086,-418.14567407,0.00013902,2]
[407838901,1772824135106,-500.0,0.00013902,2]
[407838902,1772824135117,-500.0,0.00013902,2]
[407838903,1772824135129,-500.0,0.00013902,2]
[407838904,1772824135139,-500.0,0.00013902,2]
[407838905,1772824135150,-500.0,0.00013902,2]
[407838906,1772824135164,-415.87907041,0.00013902,2]
[407838907,1772824135174,-500.0,0.00013902,2]
[407838908,1772824135185,-500.0,0.00013902,2]
[407838909,1772824135200,-500.0,0.00013902,2]
[407838910,1772824135217,-500.0,0.00013902,2]
[407838911,1772824135237,-500.0,0.00013902,2]
[407838912,1772824135254,-500.0,0.00013902,2]
[407838913,1772824135266,-500.0,0.00013902,2]
[407838914,1772824135277,-500.0,0.00013902,2]
[407838915,1772824135294,-500.0,0.00013902,2]
[407838916,1772824135311,-500.0,0.00013902,2]
[407838917,1772824135322,-500.0,0.00013902,2]
[407838918,1772824135339,-500.0,0.00013902,2]
[407838919,1772824135350,-500.0,0.00013902,2]
[407838920,1772824135361,-500.0,0.00013902,2]
[407838921,1772824135380,-500.0,0.00013902,2]
[407838922,1772824135392,-500.0,0.00013902,2]
[407838923,1772824135403,-9075.84258052,0.00013902,2]
[407838924,1772824163075,-222.84612061,0.0001384,2]
[407838925,1772824163096,-251.38570979,0.00013901,2]
[407838926,1772824210231,-4973.43117078,0.00013397,2]
[407838927,1772824213124,-53.14765844,0.00013397,2]
[407838928,1772824213158,-4893.71468312,0.00013397,2]
[407838929,1772824219247,-106.28531688,0.00013397,2]
[407838930,1772824219279,-4787.43936624,0.00013397,2]
[407838931,1772824222419,-212.56063376,0.00013397,2]
[407838936,1772824231583,-5000.0,0.00013573,2]
[407838937,1772824231593,-366.83063308,0.00013599,2]
[407838938,1772824231602,-600.0,0.00013748,2]
[407838939,1772824231612,-5675.80836306,0.00013802,2]
[407838954,1772824231986,-0.58164741,0.00013802,2]
[407838955,1772824231999,-1205.79627524,0.00013802,2]
[407838956,1772824232010,-1337.70986208,0.00013802,2]
[407838957,1772824232034,-494.57169146,0.00013802,2]
[407838958,1772824232046,-2004.84629441,0.00013802,2]
[407838959,1772824232062,-4158.82253943,0.00013802,2]
[407838960,1772824232071,-1200.0,0.00013839,2]
[407838961,1772824232081,-9271.02601397,0.0001384,2]
[407838962,1772824232091,-264.0,0.0001384,2]
[407838963,1772824232100,-34103.0,0.00013863,2]
[407838964,1772824232109,-500.0,0.00013873,2]
[407838965,1772824232119,-500.0,0.00013873,2]
[407838966,1772824232128,-500.0,0.00013873,2]
[407838967,1772824232138,-500.0,0.00013873,2]
[407838968,1772824232148,-500.0,0.00013873,2]
[407838969,1772824232157,-500.0,0.00013873,2]
[407838970,1772824232167,-607.01427849,0.00013892,2]
[407838971,1772824232176,-151.0,0.00013899,2]
[407838972,1772824232186,-150.0,0.00013901,2]
[407838973,1772824232195,-300.0,0.00013901,2]
[407838974,1772824232205,-155.0,0.00013901,3]
[407838975,1772824232216,-112676.43268602,0.00013902,2]
[407838981,1772824237657,-327.36384036,0.00013902,2]
[407838982,1772824237669,-1626.87520625,0.00013902,2]
[407838983,1772824237712,-2358231.40697711,0.00013902,2]
[407838984,1772824237723,-6939.7382368,0.00013902,2]
[407838985,1772824237732,-329599.9719214,0.00013902,2]
[407838986,1772824237748,-20208.7448317,0.00013957,2]
[407838987,1772824237757,-360.0,0.00013963,2]
[407838988,1772824237767,-141628.69642043,0.0001397,2]
[407838989,1772824237776,-204.62771964,0.00013991,2]
[407838990,1772824237785,-492.56619301,0.00013994,2]
[407838991,1772824237794,-1000.0,0.00013994,2]
[407838992,1772824237803,-808.66175515,0.00013994,2]
[407838993,1772824237813,-47899.09483978,0.00013995,2]
[407838994,1772824237822,-201.0,0.00014,2]
[407838995,1772824237831,-300.0,0.00014002,14]
[407838996,1772824237840,-1000.0,0.00014002,2]
[407838997,1772824237849,-2500.0,0.00014002,2]
[407838998,1772824237859,-2406.53,0.00014008,2]
[407838999,1772824237868,-514.0,0.00014038,2]
[407839000,1772824237877,-200.0,0.00014039,2]
[407839001,1772824237886,-169.08007548,0.0001404,2]
[407839002,1772824237896,-9999.99,0.0001404,2]
[407839003,1772824237906,-5305.71,0.0001404,2]
[407839004,1772824237917,-1037.0,0.00014066,2]
[407839005,1772824237926,-500.0,0.00014093,2]
[407839007,1772824237935,-500.0,0.00014093,2]
[407839008,1772824237944,-415.62690333,0.00014093,2]
[407839010,1772824237953,-200.0,0.00014093,2]
[407839012,1772824237963,-500.0,0.00014093,2]
[407839013,1772824237973,-500.0,0.00014093,2]
[407839014,1772824237982,-500.0,0.00014093,2]
[407839015,1772824237993,-500.0,0.00014093,2]
[407839016,1772824238002,-500.0,0.00014093,2]
[407839017,1772824238011,-500.0,0.00014093,2]
[407839018,1772824238021,-500.0,0.00014093,2]
[407839019,1772824238030,-500.0,0.00014093,2]
[407839020,1772824238039,-500.0,0.00014093,2]
[407839021,1772824238048,-500.0,0.00014093,2]
[407839022,1772824238057,-500.0,0.00014093,2]
[407839023,1772824238066,-500.0,0.00014093,2]
[407839024,1772824238076,-151.0,0.00014093,2]
[407839025,1772824238087,-500.0,0.00014093,2]
[407839026,1772824238096,-500.0,0.00014093,2]
[407839027,1772824238106,-151.0,0.00014093,2]
[407839028,1772824238116,-500.0,0.00014093,2]
[407839029,1772824238127,-500.0,0.00014093,2]
[407839030,1772824238136,-151.0,0.00014093,2]
[407839031,1772824238145,-500.0,0.00014093,2]
[407839032,1772824238154,-500.0,0.00014093,2]
[407839033,1772824238165,-151.0,0.00014093,2]
[407839034,1772824238174,-500.0,0.00014093,2]
[407839035,1772824238184,-151.0,0.00014093,2]
[407839036,1772824238193,-500.0,0.00014093,2]
[407839037,1772824238203,-151.0,0.00014093,2]
[407839038,1772824238212,-500.0,0.00014093,2]
[407839039,1772824238222,-151.0,0.00014093,2]
[407839040,1772824238231,-500.0,0.00014093,2]
[407839041,1772824238243,-151.0,0.00014093,2]
[407839042,1772824238253,-151.0,0.00014093,2]
[407839043,1772824238264,-151.0,0.00014093,2]
[407839044,1772824238273,-151.0,0.00014093,2]
[407839045,1772824238283,-151.0,0.00014093,2]
[407839046,1772824238292,-151.0,0.00014093,2]
[407839047,1772824238301,-151.0,0.00014093,2]
[407839048,1772824238311,-151.0,0.00014093,2]
[407839049,1772824238321,-265.77000524,0.00014093,2]
[407839050,1772824238334,-151.0,0.00014093,2]
[407839051,1772824238343,-151.0,0.00014093,2]
[407839052,1772824238352,-151.0,0.00014093,2]
[407839053,1772824238361,-151.0,0.00014093,2]
[407839054,1772824238373,-151.0,0.00014093,2]
[407839055,1772824238382,-151.0,0.00014093,2]
[407839056,1772824238391,-151.0,0.00014093,2]
[407839057,1772824238401,-151.0,0.00014093,2]
[407839058,1772824238411,-151.0,0.00014093,2]
[407839059,1772824238420,-151.0,0.00014093,2]
[407839060,1772824238429,-151.0,0.00014093,2]
[407839061,1772824238631,-151.0,0.00014093,2]
[407839062,1772824238659,-1154.0,0.00014094,2]
[407839063,1772824238669,-4507.552,0.00014099,2]
[407839064,1772824238677,-307.096,0.00014099,2]
[407839065,1772824238686,-591.63258493,0.00014101,2]
[407839066,1772824238696,-500.0,0.00014101,2]
[407839067,1772824238705,-500.0,0.00014101,2]
[407839068,1772824238713,-29835.35438296,0.00014101,2]
[407839069,1772824238723,-500.0,0.00014101,2]
[407839070,1772824238732,-565.46624358,0.00014101,2]
[407839071,1772824238741,-300.0,0.00014102,2]
[407839072,1772824238750,-152.0,0.00014102,2]
[407839073,1772824238760,-168.7165075,0.0001414,2]
[407839074,1772824238770,-500.0,0.00014173,2]
[407839075,1772824238779,-637.7067289,0.00014173,2]
[407839076,1772824238788,-163.17298866,0.00014173,2]
[407839077,1772824238798,-500.11286481,0.00014173,2]
[407839078,1772824238808,-500.11732428,0.00014173,2]
[407839079,1772824238817,-589.03508066,0.00014173,2]
[407839080,1772824238827,-500.0,0.00014173,2]
[407839081,1772824238837,-500.0,0.00014173,2]
[407839082,1772824238847,-500.0,0.00014173,2]
[407839083,1772824238857,-219.32528239,0.00014173,2]
[407839084,1772824238867,-167.11665281,0.00014173,2]
[407839085,1772824238877,-501.14462458,0.00014173,2]
[407839086,1772824238887,-500.0,0.00014173,2]
[407839087,1772824238896,-500.43471003,0.00014173,2]
[407839088,1772824238905,-500.0,0.00014173,2]
[407839089,1772824238914,-500.0,0.00014173,2]
[407839090,1772824238923,-500.0,0.00014173,2]
[407839091,1772824238931,-500.0,0.00014173,2]
[407839092,1772824238941,-500.0,0.00014173,2]
[407839093,1772824238950,-500.18261012,0.00014173,2]
[407839094,1772824238959,-500.0,0.00014173,2]
[407839095,1772824238968,-500.0,0.00014173,2]
[407839096,1772824238980,-500.0,0.00014173,2]
[407839097,1772824238989,-607.01427849,0.00014176,2]
[407839098,1772824238999,-535543.5241,0.00014186,2]
[407839099,1772824239008,-273.0,0.0001419,2]
[407839100,1772824239018,-152.0,0.00014193,2]
[407839101,1772824239027,-70872.14214724,0.00014194,2]
[407839102,1772824239037,-159.0,0.00014231,2]
[407839103,1772824239047,-257.65540829,0.0001424,2]
[407839104,1772824239057,-207.0,0.00014246,2]
[407839105,1772824239066,-227.0,0.0001426,2]
[407839106,1772824239075,-534.41020395,0.00014286,2]
[407839107,1772824239084,-255.0,0.00014288,2]
[407839108,1772824239093,-500.0,0.00014299,2]
[407839109,1772824239102,-500.0,0.00014299,2]
[407839110,1772824239111,-500.0,0.00014299,2]
[407839111,1772824239120,-500.0,0.00014367,2]
[407839112,1772824239129,-166.66,0.00014379,2]
[407839113,1772824239138,-166.66,0.00014404,2]
[407839114,1772824239147,-1000.0,0.00014421,2]
[407839115,1772824239156,-1000.0,0.00014421,2]
[407839116,1772824239166,-500.0,0.00014421,2]
[407839117,1772824239175,-14878.13667308,0.0001448,2]
[407839118,1772824239184,-210.33,0.00014504,2]
[407839119,1772824239193,-9271.02601392,0.00014513,2]
[407839120,1772824239202,-151.0,0.00014529,2]
[407839121,1772824239211,-500.0,0.00014532,2]
[407839122,1772824239223,-500.0,0.00014532,2]
[407839123,1772824239232,-500.0,0.00014532,2]
[407839124,1772824239241,-500.0,0.00014532,2]
[407839125,1772824239251,-500.0,0.00014532,2]
[407839126,1772824239260,-500.0,0.00014532,2]
[407839127,1772824239269,-500.0,0.00014532,2]
[407839128,1772824239278,-500.0,0.00014532,2]
[407839129,1772824239287,-500.0,0.00014532,2]
[407839130,1772824239297,-500.0,0.00014532,2]
[407839131,1772824239306,-500.0,0.00014532,2]
[407839132,1772824239315,-500.0,0.00014532,2]
[407839133,1772824239327,-500.0,0.00014532,2]
[407839134,1772824239337,-500.0,0.00014532,2]
[407839135,1772824239346,-500.0,0.00014532,2]
[407839136,1772824239356,-500.0,0.00014532,2]
[407839137,1772824239366,-500.0,0.00014532,2]
[407839138,1772824239376,-500.0,0.00014532,2]
[407839139,1772824239386,-500.0,0.00014532,2]
[407839140,1772824239395,-500.0,0.00014532,2]
[407839141,1772824239407,-500.0,0.00014532,2]
[407839142,1772824239416,-500.0,0.00014532,2]
[407839143,1772824239425,-500.0,0.00014532,2]
[407839144,1772824239434,-500.0,0.00014532,2]
[407839145,1772824239443,-500.0,0.00014532,2]
[407839146,1772824239453,-500.0,0.00014532,2]
[407839147,1772824239463,-529.79977508,0.00014532,2]
[407839148,1772824239473,-500.0,0.00014532,2]
[407839149,1772824239483,-500.0,0.00014532,2]
[407839150,1772824239492,-500.0,0.00014532,2]
[407839151,1772824239502,-500.0,0.00014532,2]
[407839152,1772824239511,-500.0,0.00014532,2]
[407839153,1772824239521,-512.9597754,0.00014532,2]
[407839154,1772824239531,-500.0,0.00014532,2]
[407839155,1772824239540,-500.0,0.00014532,2]
[407839156,1772824239549,-500.0,0.00014532,2]
[407839157,1772824239559,-500.0,0.00014532,2]
[407839158,1772824239569,-500.0,0.00014532,2]
[407839159,1772824239579,-500.0,0.00014532,2]
[407839160,1772824239589,-500.0,0.00014532,2]
[407839161,1772824239598,-500.0,0.00014532,2]
[407839162,1772824239608,-598.33174267,0.00014532,2]
[407839163,1772824239617,-500.0,0.00014532,2]
[407839164,1772824239627,-500.0,0.00014532,2]
[407839165,1772824239638,-500.0,0.00014532,2]
[407839166,1772824239648,-500.0,0.00014532,2]
[407839167,1772824239657,-500.0,0.00014532,2]
[407839168,1772824239666,-500.0,0.00014532,2]
[407839169,1772824239675,-500.0,0.00014532,2]
[407839170,1772824239685,-500.0,0.00014532,2]
[407839171,1772824239695,-500.0,0.00014532,2]
[407839172,1772824239706,-501.65490111,0.00014532,2]
[407839174,1772824239715,-500.0,0.00014532,2]
[407839176,1772824239724,-500.0,0.00014532,2]
[407839178,1772824239734,-500.0,0.00014532,2]
[407839180,1772824239743,-500.0,0.00014532,2]
[407839182,1772824239753,-500.0,0.00014532,2]
[407839183,1772824239763,-500.0,0.00014532,2]
[407839184,1772824239772,-500.0,0.00014532,2]
[407839185,1772824239782,-500.0,0.00014532,2]
[407839186,1772824239791,-500.0,0.00014532,2]
[407839187,1772824239802,-500.0,0.00014532,2]
[407839188,1772824239813,-500.0,0.00014532,2]
[407839189,1772824239824,-500.0,0.00014532,2]
[407839190,1772824239834,-500.0,0.00014532,2]
[407839191,1772824239846,-500.0,0.00014532,2]
[407839192,1772824239857,-500.0,0.00014532,2]
[407839193,1772824239867,-500.0,0.00014532,2]
[407839194,1772824239877,-500.0,0.00014532,2]
[407839195,1772824239886,-500.0,0.00014532,2]
[407839196,1772824239896,-500.0,0.00014532,2]
[407839197,1772824239906,-500.0,0.00014532,2]
[407839198,1772824239917,-500.0,0.00014532,2]
[407839199,1772824239926,-150.0,0.00014532,2]
[407839200,1772824239939,-954.40292553,0.00014542,2]
[407839201,1772824239949,-500.0,0.00014573,2]
[407839202,1772824239960,-446.12402339,0.00014573,2]
[407839203,1772824239969,-500.0,0.00014573,2]
[407839204,1772824239979,-150.58,0.00014625,2]
[407839205,1772824239988,-500.0,0.00014641,2]
[407839206,1772824239999,-200.0,0.00014641,2]
[407839207,1772824240009,-166.66,0.00014659,2]
[407839208,1772824240019,-2406.53,0.00014708,2]
[407839209,1772824240029,-311.2601902,0.00014721,2]
[407839210,1772824240038,-1001.33101077,0.00014721,2]
[407839211,1772824240049,-500.0,0.00014721,2]
[407839212,1772824240059,-500.0,0.00014721,2]
[407839213,1772824240069,-1000.0,0.00014721,2]
[407839214,1772824240079,-502.06786579,0.00014721,2]
[407839215,1772824240090,-500.0,0.00014721,2]
[407839216,1772824240100,-1000.0,0.00014721,2]
[407839217,1772824240110,-530.88059829,0.00014721,2]
[407839218,1772824240121,-1000.0,0.00014721,2]
[407839219,1772824240131,-1000.0,0.00014721,2]
[407839220,1772824240141,-600.0,0.00014737,2]
[407839221,1772824240151,-300.0,0.00014737,2]
[407839222,1772824240160,-150.0,0.00014737,2]
[407839223,1772824240170,-5000.0,0.00014737,2]
[407839224,1772824240180,-305.05958288,0.00014737,2]
[407839225,1772824240190,-300.0,0.00014737,2]
[407839226,1772824240201,-1871.68485307,0.00014759,2]
[407839227,1772824240210,-600.0,0.00014762,2]
[407839228,1772824240220,-300.0,0.00014762,2]
[407839229,1772824240230,-250.0,0.00014762,2]
[407839230,1772824240239,-166.66,0.0001485,2]
[407839231,1772824240249,-323.2,0.00014862,2]
[407839232,1772824240258,-500.0,0.00014915,2]
[407839233,1772824240267,-1500.0,0.00014968,2]
[407839234,1772824240277,-1398.86197228,0.00015,7]
[407839235,1772824240288,-250.0,0.00015,2]
[407839236,1772824240297,-255.0,0.00015013,2]
[407839237,1772824240307,-900.0,0.00015068,2]
[407839238,1772824240316,-1000.0,0.00015121,2]
[407839239,1772824240328,-14878.13667308,0.00015157,2]
[407839240,1772824240338,-500.0,0.00015182,2]
[407839241,1772824240347,-9271.02601392,0.00015187,2]
[407839242,1772824240357,-362.62096704,0.00015189,2]
[407839243,1772824240367,-200.0,0.00015189,2]
[407839244,1772824240376,-551.5526679,0.00015207,2]
[407839245,1772824240386,-300.0,0.00015207,2]
[407839247,1772824240395,-250.0,0.00015207,2]
[407839248,1772824240406,-1680.0,0.00015223,2]
[407839249,1772824240415,-420.0,0.00015231,2]
[407839250,1772824240424,-1500.0,0.00015268,2]
[407839251,1772824240434,-1500.0,0.00015268,2]
[407839252,1772824240443,-1500.0,0.00015268,2]
[407839253,1772824240452,-1500.0,0.00015268,2]
[407839254,1772824240463,-3943.53044688,0.00015291,2]
[407839255,1772824240472,-250.0,0.00015291,2]
[407839256,1772824240481,-504.6462925,0.00015291,2]
[407839257,1772824240491,-600.0,0.00015291,2]
[407839258,1772824240500,-166.66,0.00015296,2]
[407839259,1772824240510,-5000.0,0.00015353,2]
[407839260,1772824240519,-600.0,0.00015353,2]
[407839261,1772824240528,-150.58,0.00015356,2]
[407839262,1772824240537,-170.99,0.00015387,2]
[407839263,1772824240548,-2406.53,0.00015408,2]
[407839265,1772824240557,-73543.6945197,0.00015444,2]
[407839267,1772824240566,-1548.4649041,0.00015445,2]
[407839269,1772824240575,-1151.5,0.00015471,2]
[407839271,1772824240584,-2000.0,0.00015516,2]
[407839273,1772824240594,-4509.1804707,0.00015569,2]
[407839274,1772824240603,-1748.37932669,0.00015687,2]
[407839275,1772824240613,-259.860044,0.00015689,2]
[407839276,1772824240621,-200.0,0.00015737,2]
[407839277,1772824240631,-166.66,0.00015742,2]
[407839278,1772824240640,-16409.8163361,0.00015788,2]
[407839279,1772824240649,-345.509222,0.00015789,2]
[407839280,1772824240659,-2000.0,0.00015816,2]
[407839281,1772824240668,-1778.57186039,0.00015816,2]
[407839282,1772824240677,-14878.13667308,0.00015835,2]
[407839283,1772824240686,-9271.02601392,0.0001586,2]
[407839284,1772824240696,-150.0,0.000159,2]
[407839285,1772824240705,-325.0,0.00015927,2]
[407839286,1772824240714,-150.0,0.00015927,2]
[407839287,1772824240724,-1006.1341605,0.00015928,2]
[407839288,1772824240733,-258.69744367,0.0001596,2]
[407839289,1772824240742,-2148.8308,0.00015987,2]
[407839290,1772824240752,-200.0,0.00016,2]
[407839291,1772824240761,-2500.0,0.00016064,2]
[407839292,1772824240771,-150.58,0.00016088,2]
[407839293,1772824240781,-2406.53,0.00016109,2]
[407839294,1772824240791,-500.0,0.00016173,2]
[407839295,1772824240800,-301.78790722,0.00016173,2]
[407839296,1772824240809,-500.0,0.00016173,2]
[407839297,1772824240819,-500.0,0.00016173,2]
[407839298,1772824240828,-235.21838039,0.00016173,2]
[407839299,1772824240837,-500.0,0.00016173,2]
[407839300,1772824240847,-500.0,0.00016173,2]
[407839301,1772824240856,-500.0,0.00016173,2]
[407839302,1772824240865,-500.0,0.00016173,2]
[407839303,1772824240874,-500.0,0.00016173,2]
[407839304,1772824240883,-135000.13647593,0.000162,5]
[407839305,1772824240893,-433.0,0.00016208,2]
[407839306,1772824240902,-386.76,0.0001621,2]
[407839307,1772824240911,-2000.0,0.0001622,2]
[407839308,1772824240920,-2000.0,0.0001632,2]
[407839309,1772824240930,-2000.0,0.0001632,2]
[407839310,1772824240939,-2000.0,0.0001632,2]
[407839311,1772824240948,-2000.0,0.0001632,2]
[407839312,1772824240957,-2000.0,0.0001632,2]
[407839313,1772824240967,-2003.37044262,0.00016364,2]
[407839314,1772824240975,-150.0,0.000164,2]
[407839315,1772824240986,-213.0,0.000164,2]
[407839316,1772824240995,-302.46,0.000164,2]
[407839317,1772824241005,-352.32802655,0.000164,2]
[407839318,1772824241014,-228.32,0.00016438,2]
[407839319,1772824241023,-900.0,0.00016438,2]
[407839320,1772824241032,-386.76,0.0001648,2]
[407839321,1772824241041,-1094.27,0.000165,2]
[407839322,1772824241050,-14878.13667308,0.00016512,2]
[407839323,1772824241060,-1748.37932669,0.0001653,2]
[407839324,1772824241069,-9271.02601392,0.00016533,2]
[407839325,1772824241078,-10688.6562152,0.00016596,2]
[407839326,1772824241088,-3000.0,0.00016612,2]
[407839327,1772824241098,-587.0,0.00016688,2]
[407839328,1772824241107,-166.34,0.00016712,2]
[407839329,1772824241116,-1000.0,0.00016721,2]
[407839330,1772824241126,-1000.0,0.00016721,2]
[407839331,1772824241135,-556.1229892,0.00016721,2]
[407839332,1772824241144,-449.5306254,0.00016721,2]
[407839333,1772824241153,-1000.0,0.00016721,2]
[407839334,1772824241162,-1000.0,0.00016721,2]
[407839335,1772824241172,-2351.0,0.00016745,2]
[407839336,1772824241181,-386.76,0.0001675,2]
[407839337,1772824241191,-2406.53,0.00016809,2]
[407839338,1772824241201,-150.58,0.00016819,2]
[407839339,1772824241211,-222.8461206,0.0001687,2]
[407839340,1772824241220,-5621.12574049,0.000169,3]
[407839341,1772824241230,-278060.01799583,0.00017,2]
[407839342,1772824241239,-300.0,0.00017,2]
[407839343,1772824241249,-386.76,0.0001702,2]
[407839344,1772824241259,-981.87293994,0.0001711,2]
[407839345,1772824241268,-3500.0,0.0001716,2]
[407839346,1772824241277,-2384.961573,0.00017176,2]
[407839347,1772824241287,-14878.13667308,0.0001719,2]
[407839348,1772824241297,-9271.02601392,0.00017207,2]
[407839349,1772824241306,-250.0,0.0001724,2]
[407839350,1772824241315,-1500.0,0.00017268,2]
[407839351,1772824241329,-1057.2086331,0.00017268,2]
[407839352,1772824241339,-1500.0,0.00017268,2]
[407839353,1772824241348,-1500.0,0.00017268,2]
[407839354,1772824241358,-386.76,0.0001729,2]
[407839355,1772824241370,-1748.37932669,0.00017372,2]
[407839356,1772824241380,-500.0,0.00017452,2]
[407839357,1772824241389,-3257.08,0.0001751,7]
[407839358,1772824241398,-570.73,0.0001751,7]
[407839359,1772824241407,-4093.97,0.0001751,7]
[407839360,1772824241417,-13402.81,0.0001751,7]
[407839361,1772824241426,-736.0,0.00017515,2]
[407839362,1772824241436,-150.58,0.0001755,2]
[407839363,1772824241445,-386.76,0.0001756,2]
[407839364,1772824241454,-2500.0,0.00017627,2]
[407839365,1772824241463,-2500.0,0.00017627,2]
[407839366,1772824241473,-500.0,0.00017627,2]
[407839367,1772824241483,-181.0801015,0.00017627,2]